[Event "NJSK 2026 Jeugd C"]
[Site "Helmond, Netherlands"]
[Date "2026.04.30"]
[Round "8.4"]
[White "Zhang, Xiheng"]
[Black "Thijssen, Freek"]
[Result "1/2-1/2"]
[TimeControl "90min/40moves + 30sec/move"]
[WhiteTitle "-"]
[BlackTitle "-"]
[WhiteFideId "40102386"]
[BlackFideId "1091840"]
[WhiteElo "2135"]
[BlackElo "2159"]

1. e4 {[%clk 01:30:58]} c5 {[%clk 01:29:55]} {[%emt 00:01:06]} 2. Nf3 {[%clk
01:31:24]} {[%emt 00:00:04]} Nc6 {[%clk 01:30:18]} {[%emt 00:00:07]} 3. d4
{[%clk 01:31:50]} {[%emt 00:00:04]} cxd4 {[%clk 01:30:41]} {[%emt 00:00:07]} 4.
Nxd4 {[%clk 01:32:15]} {[%emt 00:00:04]} Nf6 {[%clk 01:30:47]} {[%emt
00:00:25]} 5. Nc3 {[%clk 01:32:40]} {[%emt 00:00:05]} e5 {[%clk 01:30:56]}
{[%emt 00:00:21]} 6. Ndb5 {[%clk 01:33:05]} {[%emt 00:00:05]} d6 {[%clk
01:31:16]} {[%emt 00:00:10]} 7. Bg5 {[%clk 01:33:29]} {[%emt 00:00:06]} a6
{[%clk 01:31:33]} {[%emt 00:00:14]} 8. Na3 {[%clk 01:33:52]} {[%emt 00:00:07]}
b5 {[%clk 01:31:33]} {[%emt 00:00:30]} 9. Bxf6 {[%clk 01:34:16]} {[%emt
00:00:06]} gxf6 {[%clk 01:31:55]} {[%emt 00:00:08]} 10. Nd5 {[%clk 01:34:39]}
{[%emt 00:00:07]} Bg7 {[%clk 01:31:17]} {[%emt 00:01:07]} 11. c3 {[%clk
01:35:03]} {[%emt 00:00:07]} f5 {[%clk 01:31:23]} {[%emt 00:00:25]} 12. exf5
{[%clk 01:35:28]} {[%emt 00:00:05]} Bxf5 {[%clk 01:31:46]} {[%emt 00:00:05]} 13.
Nc2 {[%clk 01:35:52]} {[%emt 00:00:08]} O-O {[%clk 01:31:42]} {[%emt 00:00:34]}
14. Nce3 {[%clk 01:36:16]} {[%emt 00:00:05]} Be6 {[%clk 01:32:07]} {[%emt
00:00:05]} 15. Bd3 {[%clk 01:36:39]} {[%emt 00:00:07]} f5 {[%clk 01:32:30]}
{[%emt 00:00:07]} 16. O-O {[%clk 01:37:01]} {[%emt 00:00:08]} Kh8 {[%clk
01:32:20]} {[%emt 00:00:40]} 17. Qh5 {[%emt 00:01:16]} e4 {[%clk 01:32:21]}
{[%emt 00:00:27]} 18. Bc2 {[%clk 01:36:29]} {[%emt 00:00:19]} Ne5 {[%clk
01:32:27]} {[%emt 00:00:23]} 19. Rfd1 {[%clk 01:22:21]} {[%emt 00:14:37]} Bf7
{[%clk 01:12:24]} {[%emt 00:20:32]} 20. Qh3 {[%clk 01:17:39]} {[%emt 00:05:12]}
Qg5 {[%clk 01:12:46]} {[%emt 00:00:07]} 21. Qxf5 {[%clk 00:38:40]} {[%emt
00:39:30]} Nf3+ {[%clk 00:37:10]} {[%emt 00:36:06]} 22. Kh1 {[%clk 00:36:45]}
{[%emt 00:02:24]} Qh4 {[%clk 00:36:15]} {[%emt 00:01:25]} 23. Qf4 {[%clk
00:26:38]} {[%emt 00:10:37]} Bxd5 {[%clk 00:29:56]} {[%emt 00:06:49]} 24. Qxh4
{[%clk 00:26:53]} {[%emt 00:00:15]} Nxh4 {[%clk 00:30:25]} {[%emt 00:00:02]} 25.
Nxd5 {[%clk 00:25:40]} {[%emt 00:01:43]} Rxf2 {[%clk 00:28:10]} {[%emt
00:02:44]} 26. Bxe4 {[%clk 00:25:57]} {[%emt 00:00:13]} Re8 {[%clk 00:18:06]}
{[%emt 00:10:34]} 27. Re1 {[%clk 00:23:45]} {[%emt 00:02:43]} Rxb2 {[%clk
00:18:08]} {[%emt 00:00:27]} 28. Nc7 {[%clk 00:14:10]} {[%emt 00:10:05]} Rf8
{[%clk 00:11:36]} {[%emt 00:07:02]} 29. Re3 {[%clk 00:08:22]} {[%emt 00:06:17]}
Rxa2 {[%clk 00:07:15]} {[%emt 00:04:52]} 30. Rd1 {[%clk 00:08:47]} {[%emt
00:00:05]} Nf5 {[%clk 00:02:50]} {[%emt 00:04:56]} 31. Rh3 {[%clk 00:08:04]}
{[%emt 00:01:12]} h6 {[%clk 00:02:53]} {[%emt 00:00:27]} 32. g4 {[%clk
00:02:39]} {[%emt 00:05:55]} Ne7 {[%clk 00:02:43]} {[%emt 00:00:40]} 33. g5
{[%clk 00:02:24]} {[%emt 00:00:45]} Rff2 {[%clk 00:01:08]} {[%emt 00:02:05]} 34.
gxh6 {[%clk 00:01:13]} {[%emt 00:01:41]} Be5 {[%clk 00:01:37]} 35. Kg1 {[%clk
00:00:50]} {[%emt 00:00:53]} Bxh2+ {[%clk 00:01:47]} {[%emt 00:00:20]} 36. Rxh2
{[%clk 00:00:49]} {[%emt 00:00:31]} Rxh2 {[%clk 00:02:09]} {[%emt 00:00:08]} 37.
Rxd6 {[%clk 00:01:08]} {[%emt 00:00:11]} Rhd2 {[%clk 00:02:19]} {[%emt
00:00:19]} 38. Rxd2 {[%clk 00:01:14]} {[%emt 00:00:25]} Rxd2 {[%clk 00:02:47]}
39. Nxa6 {[%clk 00:01:37]} {[%emt 00:00:08]} Nc8 {[%clk 00:01:27]} {[%emt
00:01:50]} 40. Nb4 {[%clk 00:01:06]} {[%emt 00:01:01]} Nd6 {[%clk 00:01:19]}
{[%emt 00:00:38]} 41. Bd3 {[%clk 00:01:13]} {[%emt 00:00:23]} Rd1+ {[%clk
00:01:20]} {[%emt 00:00:29]} 42. Kf2 {[%clk 00:01:33]} {[%emt 00:00:10]} Rh1
{[%clk 00:00:52]} {[%emt 00:00:59]} 43. h7 {[%clk 00:01:50]} {[%emt 00:00:12]}
Kg7 {[%clk 00:00:48]} {[%emt 00:00:34]} 44. Nd5 {[%clk 00:01:32]} {[%emt
00:00:48]} Rh5 {[%clk 00:00:59]} {[%emt 00:00:18]} 45. Nc7 {[%clk 00:01:22]}
{[%emt 00:00:41]} Kh8 {[%clk 00:00:42]} {[%emt 00:00:46]} 46. Ne6 {[%emt
00:01:05]} Rd5 {[%clk 00:00:41]} 47. Nd4 {[%clk 00:01:32]} {[%emt 00:00:16]} b4
{[%clk 00:00:54]} {[%emt 00:00:17]} 48. Ke3 {[%clk 00:01:49]} {[%emt 00:00:13]}
bxc3 {[%clk 00:01:20]} {[%emt 00:00:04]} 49. Ne2 {[%clk 00:01:24]} {[%emt
00:00:55]} Re5+ {[%clk 00:01:03]} {[%emt 00:00:47]} 50. Kf3 {[%clk 00:01:34]}
{[%emt 00:00:20]} Nb5 {[%clk 00:00:37]} {[%emt 00:00:56]} 51. Bxb5 {[%clk
00:01:34]} {[%emt 00:00:30]} Rxb5 {[%clk 00:01:05]} {[%emt 00:00:02]} 52. Ke3
{[%clk 00:01:54]} {[%emt 00:00:10]} c2 {[%clk 00:00:52]} {[%emt 00:00:44]} 53.
Kd2 {[%clk 00:02:09]} {[%emt 00:00:14]} Rc5 {[%clk 00:00:56]} {[%emt 00:00:26]}
54. Nc1 {[%clk 00:01:24]} {[%emt 00:01:15]} Kxh7 {[%clk 00:01:12]} {[%emt
00:00:14]} 55. Nd3 {[%clk 00:01:49]} {[%emt 00:00:05]} Rc4 {[%clk 00:01:10]}
{[%emt 00:00:33]} 56. Kc1 {[%clk 00:02:14]} {[%emt 00:00:05]} Kg7 {[%clk
00:00:55]} {[%emt 00:00:44]} 57. Ne1 {[%clk 00:02:38]} {[%emt 00:00:06]} Kf6
{[%clk 00:01:19]} {[%emt 00:00:06]} 58. Nxc2 {[%clk 00:03:04]} {[%emt
00:00:04]} Ke5 {[%clk 00:01:45]} {[%emt 00:00:04]} 59. Kd2 {[%clk 00:03:24]}
{[%emt 00:00:10]} Rh4 {[%clk 00:02:04]} {[%emt 00:00:11]} 60. Kd3 {[%clk
00:02:07]} {[%emt 00:01:47]} Rg4 {[%clk 00:01:51]} {[%emt 00:00:43]} 61. Kc3
{[%clk 00:02:07]} {[%emt 00:00:30]} Rf4 {[%clk 00:01:59]} {[%emt 00:00:22]} 62.
Kd3 {[%clk 00:02:31]} {[%emt 00:00:06]} Rh4 {[%clk 00:02:26]} {[%emt 00:00:03]}
63. Kc3 {[%clk 00:02:45]} {[%emt 00:00:16]} Kd5 {[%clk 00:02:29]} {[%emt
00:00:27]} 64. Ne3+ {[%clk 00:02:31]} {[%emt 00:00:44]} Kc5 {[%clk 00:02:06]}
{[%emt 00:00:53]} 65. Kd3 {[%clk 00:02:47]} {[%emt 00:00:14]} Rd4+ {[%clk
00:01:01]} {[%emt 00:01:35]} 66. Kc3 {[%clk 00:03:06]} {[%emt 00:00:12]} Rd8
{[%clk 00:00:57]} {[%emt 00:00:33]} 67. Nc2 {[%clk 00:03:05]} {[%emt 00:00:30]}
Kd5 {[%clk 00:01:01]} {[%emt 00:00:27]} 68. Kd3 {[%clk 00:02:39]} {[%emt
00:00:56]} Ke5+ {[%clk 00:01:24]} {[%emt 00:00:08]} 69. Ke3 {[%clk 00:02:44]}
{[%emt 00:00:24]} Rc8 {[%clk 00:00:34]} {[%emt 00:01:20]} 70. Kd3 {[%clk
00:03:08]} {[%emt 00:00:07]} Rh8 {[%clk 00:00:49]} {[%emt 00:00:15]} 71. Nb4
{[%clk 00:02:07]} {[%emt 00:01:32]} Rh6 {[%clk 00:00:38]} {[%emt 00:00:40]} 72.
Kc4 {[%clk 00:00:53]} {[%emt 00:01:43]} Ke4 {[%clk 00:00:51]} {[%emt 00:00:17]}
73. Kc5 {[%clk 00:01:07]} {[%emt 00:00:17]} Rh5+ {[%clk 00:01:09]} {[%emt
00:00:12]} 74. Kd6 {[%clk 00:00:50]} {[%emt 00:00:48]} Rb5 {[%clk 00:00:44]}
{[%emt 00:00:55]} 75. Nc6 {[%clk 00:01:06]} {[%emt 00:00:13]} Rd5+ {[%clk
00:00:58]} {[%emt 00:00:16]} 76. Ke6 {[%clk 00:00:45]} {[%emt 00:00:51]} Rh5
{[%clk 00:00:45]} {[%emt 00:00:43]} 77. Kd6 {[%clk 00:01:07]} {[%emt 00:00:08]}
Rg5 {[%clk 00:00:56]} {[%emt 00:00:19]} 78. Nb4 {[%clk 00:01:10]} {[%emt
00:00:27]} Kd4 {[%clk 00:00:35]} {[%emt 00:00:51]} 79. Nc6+ {[%clk 00:01:30]}
{[%emt 00:00:11]} Ke4 {[%clk 00:00:45]} {[%emt 00:00:19]} 80. Nb4 {[%clk
00:01:59]} {[%emt 00:00:02]} Rb5 {[%clk 00:00:43]} {[%emt 00:00:31]} 81. Nc6
{[%clk 00:02:14]} {[%emt 00:00:16]} Rd5+ {[%clk 00:01:00]} {[%emt 00:00:12]} 82.
Ke6 {[%clk 00:02:05]} {[%emt 00:00:39]} Rd1 {[%clk 00:01:01]} {[%emt 00:00:28]}
83. Nb4 {[%clk 00:02:09]} {[%emt 00:00:27]} Rh1 {[%clk 00:00:36]} {[%emt
00:00:54]} 84. Kd6 {[%clk 00:02:28]} {[%emt 00:00:13]} Rh5 {[%clk 00:00:42]}
{[%emt 00:00:22]} 85. Nc6 {[%clk 00:02:38]} {[%emt 00:00:21]} Rg5 {[%clk
00:00:50]} {[%emt 00:00:21]} 86. Nb4 {[%clk 00:02:51]} {[%emt 00:00:19]} Rh5
{[%clk 00:00:34]} {[%emt 00:00:45]} 87. Nc6 {[%clk 00:03:08]} {[%emt 00:00:13]}
Rg5 {[%clk 00:00:36]} {[%emt 00:00:27]} 88. Nb4 {[%clk 00:03:20]} {[%emt
00:00:19]} Rg6+ {[%clk 00:00:37]} {[%emt 00:00:29]} 89. Kc5 {[%clk 00:03:43]}
{[%emt 00:00:08]} Ke5 {[%clk 00:00:34]} {[%emt 00:00:32]} 90. Nc6 {[%clk
00:04:00]} {[%emt 00:00:13]} Ke4 {[%clk 00:00:36]} {[%emt 00:00:26]} 91. Nb4
{[%clk 00:04:01]} {[%emt 00:00:31]} Rg1 {[%clk 00:00:39]} {[%emt 00:00:27]} 92.
Kd6 {[%clk 00:04:18]} {[%emt 00:00:13]} Rd1+ {[%clk 00:00:45]} {[%emt
00:00:24]} 93. Kc5 {[%clk 00:04:36]} {[%emt 00:00:12]} Rc1+ {[%clk 00:00:35]}
{[%emt 00:00:40]} 94. Kd6 {[%clk 00:05:01]} {[%emt 00:00:05]} Rc3 {[%clk
00:00:35]} {[%emt 00:00:29]} 95. Nc6 {[%clk 00:05:10]} {[%emt 00:00:22]} Ra3
{[%clk 00:00:36]} {[%emt 00:00:29]} 96. Kc5 {[%clk 00:05:22]} {[%emt 00:00:19]}
Ra1 {[%clk 00:00:34]} {[%emt 00:00:32]} 97. Kd6 {[%clk 00:05:46]} {[%emt
00:00:06]} Rd1+ {[%clk 00:00:37]} {[%emt 00:00:27]} 98. Kc5 {[%clk 00:06:06]}
{[%emt 00:00:10]} Rd5+ {[%clk 00:00:43]} {[%emt 00:00:24]} 99. Kc4 {[%clk
00:06:04]} {[%emt 00:00:33]} Rh5 {[%clk 00:00:35]} {[%emt 00:00:36]} 100. Nb4
{[%clk 00:06:26]} {[%emt 00:00:09]} Rh8 {[%clk 00:00:37]} {[%emt 00:00:28]} 101.
Kc5 {[%clk 00:06:47]} {[%emt 00:00:09]} Rc8+ {[%clk 00:00:44]} {[%emt
00:00:22]} 102. Kd6 {[%clk 00:07:13]} {[%emt 00:00:05]} Kd4 {[%clk 00:00:49]}
{[%emt 00:00:25]} 103. Nc6+ {[%clk 00:07:38]} {[%emt 00:00:06]} Ke4 {[%clk
00:00:52]} {[%emt 00:00:26]} 104. Nb4 {[%clk 00:08:04]} {[%emt 00:00:04]} Rh8
{[%clk 00:00:57]} {[%emt 00:00:25]} 105. Kc5 {[%clk 00:08:29]} {[%emt
00:00:05]} Rh5+ {[%clk 00:01:14]} {[%emt 00:00:13]} 106. Kd6 {[%clk 00:08:42]}
{[%emt 00:00:17]} Rh6+ {[%clk 00:01:02]} {[%emt 00:00:41]} 107. Kc5 {[%clk
00:09:09]} {[%emt 00:00:04]} Rc6+ {[%clk 00:01:24]} {[%emt 00:00:07]} 108. Kxc6
{[%clk 00:09:32]} {[%emt 00:00:07]} 1/2-1/2

[Event "NJSK 2026 Jeugd C"]
[Site "Helmond, Netherlands"]
[Date "2026.04.30"]
[Round "8.5"]
[White "Botter, Simon"]
[Black "Gupta, Akul"]
[Result "1-0"]
[TimeControl "90min/40moves + 30sec/move"]
[WhiteTitle "-"]
[BlackTitle "-"]
[WhiteFideId "40107698"]
[BlackFideId "1084194"]
[WhiteElo "1988"]
[BlackElo "2017"]

1. Nf3 {[%clk 01:30:56]} {[%emt 00:00:03]} Nf6 {[%clk 01:30:56]} {[%emt
00:00:06]} 2. g3 {[%clk 01:31:22]} {[%emt 00:00:04]} e6 {[%clk 01:31:21]}
{[%emt 00:00:05]} 3. Bg2 {[%clk 01:31:47]} {[%emt 00:00:05]} b6 {[%clk
01:31:48]} {[%emt 00:00:04]} 4. O-O {[%clk 01:31:01]} {[%emt 00:01:15]} Bb7
{[%clk 01:32:14]} {[%emt 00:00:04]} 5. c4 {[%clk 01:31:20]} {[%emt 00:00:11]}
Be7 {[%clk 01:32:39]} {[%emt 00:00:05]} 6. d4 {[%clk 01:31:36]} {[%emt
00:00:13]} O-O {[%clk 01:33:02]} {[%emt 00:00:07]} 7. Nc3 {[%clk 01:31:23]}
{[%emt 00:00:43]} d6 {[%clk 01:31:49]} {[%emt 00:01:44]} 8. d5 {[%clk
01:19:07]} {[%emt 00:12:46]} e5 {[%clk 01:30:24]} {[%emt 00:01:55]} 9. e4
{[%clk 01:14:41]} {[%emt 00:04:55]} Nbd7 {[%clk 01:28:30]} {[%emt 00:02:24]} 10.
Rb1 {[%clk 01:12:52]} {[%emt 00:02:19]} Nc5 {[%clk 01:27:39]} {[%emt 00:01:21]}
11. Nh4 {[%clk 01:12:13]} {[%emt 00:01:09]} a5 {[%clk 01:27:43]} {[%emt
00:00:27]} 12. Nf5 {[%clk 01:08:32]} {[%emt 00:04:10]} Bc8 {[%clk 01:25:57]}
{[%emt 00:02:16]} 13. Bg5 {[%clk 01:01:16]} {[%emt 00:07:46]} h6 {[%clk
01:16:21]} {[%emt 00:10:06]} 14. Be3 {[%clk 00:55:50]} {[%emt 00:05:56]} Kh8
{[%clk 01:08:09]} {[%emt 00:08:41]} 15. f3 {[%clk 00:51:17]} {[%emt 00:05:03]}
Bxf5 {[%clk 01:02:32]} {[%emt 00:06:07]} 16. exf5 {[%clk 00:48:38]} {[%emt
00:03:09]} Qd7 {[%clk 01:01:00]} {[%emt 00:02:03]} 17. Bh3 {[%clk 00:46:05]}
{[%emt 00:03:04]} Nh7 {[%clk 00:58:28]} {[%emt 00:03:02]} 18. Bg4 {[%clk
00:43:05]} {[%emt 00:03:29]} Bf6 {[%clk 00:52:25]} {[%emt 00:06:33]} 19. Ne4
{[%clk 00:41:14]} {[%emt 00:02:21]} Rfe8 {[%clk 00:39:21]} {[%emt 00:13:33]} 20.
Kg2 {[%clk 00:38:47]} {[%emt 00:02:58]} Rad8 {[%clk 00:36:47]} {[%emt
00:03:04]} 21. h4 {[%clk 00:33:39]} {[%emt 00:05:39]} c6 {[%clk 00:28:11]}
{[%emt 00:09:05]} 22. Qd2 {[%clk 00:24:46]} {[%emt 00:09:23]} Nxe4 {[%clk
00:25:29]} {[%emt 00:03:12]} 23. fxe4 {[%clk 00:23:04]} {[%emt 00:02:13]} c5
{[%clk 00:25:55]} {[%emt 00:00:03]} 24. Be2 {[%clk 00:21:52]} {[%emt 00:01:42]}
Qe7 {[%clk 00:19:29]} {[%emt 00:06:56]} 25. Bd1 {[%clk 00:21:12]} {[%emt
00:01:10]} Qd7 {[%clk 00:17:59]} {[%emt 00:02:00]} 26. Be2 {[%clk 00:20:47]}
{[%emt 00:00:55]} Qe7 {[%clk 00:18:09]} {[%emt 00:00:20]} 27. b3 {[%clk
00:20:14]} {[%emt 00:01:03]} Ra8 {[%clk 00:16:12]} {[%emt 00:02:26]} 28. a3
{[%clk 00:20:06]} {[%emt 00:00:39]} Ra7 {[%clk 00:16:36]} {[%emt 00:00:06]} 29.
Rb2 {[%clk 00:19:58]} {[%emt 00:00:37]} Nf8 {[%clk 00:04:28]} {[%emt 00:12:39]}
30. Rh1 {[%clk 00:18:46]} {[%emt 00:01:42]} Nd7 {[%clk 00:04:23]} {[%emt
00:00:36]} 31. g4 {[%clk 00:15:42]} {[%emt 00:03:33]} Qf8 {[%clk 00:01:26]}
{[%emt 00:03:28]} 32. g5 {[%clk 00:11:55]} {[%emt 00:04:15]} Be7 {[%clk
00:01:35]} {[%emt 00:00:22]} 33. Rbb1 {[%clk 00:11:00]} {[%emt 00:01:25]} Qg8
{[%clk 00:00:52]} {[%emt 00:01:14]} 34. Rbg1 {[%clk 00:09:51]} {[%emt
00:01:37]} Qh7 {[%clk 00:00:51]} {[%emt 00:00:32]} 35. Kf2 {[%clk 00:08:18]}
{[%emt 00:02:04]} Rf8 {[%clk 00:00:00]} {[%emt 00:01:19]} {time} 1-0

[Event "NJSK 2026 Jeugd C"]
[Site "Helmond, Netherlands"]
[Date "2026.04.30"]
[Round "8.6"]
[White "Sosef, Noah"]
[Black "Omnes, Tiago"]
[Result "1/2-1/2"]
[TimeControl "90min/40moves + 30sec/move"]
[WhiteTitle "-"]
[BlackTitle "-"]
[WhiteFideId "40107060"]
[BlackFideId "1091867"]
[WhiteElo "2012"]
[BlackElo "1990"]

1. e4 {[%emt 00:00:08]} e5 {[%clk 01:30:55]} 2. Nf3 {[%clk 01:31:24]} {[%emt
00:00:04]} Nc6 {[%clk 01:31:19]} {[%emt 00:00:06]} 3. d4 {[%clk 01:31:50]}
{[%emt 00:00:06]} exd4 {[%clk 01:31:47]} 4. Nxd4 {[%clk 01:32:15]} {[%emt
00:00:05]} Nf6 {[%clk 01:32:11]} {[%emt 00:00:08]} 5. Nxc6 {[%clk 01:32:40]}
{[%emt 00:00:02]} bxc6 {[%clk 01:32:34]} {[%emt 00:00:07]} 6. e5 {[%clk
01:33:08]} {[%emt 00:00:02]} Qe7 {[%clk 01:32:56]} {[%emt 00:00:09]} 7. Qe2
{[%clk 01:33:34]} {[%emt 00:00:03]} Nd5 {[%clk 01:33:22]} {[%emt 00:00:04]} 8.
g3 {[%clk 01:34:00]} {[%emt 00:00:04]} g6 {[%clk 01:33:47]} {[%emt 00:00:04]} 9.
c4 {[%clk 01:34:24]} {[%emt 00:00:07]} Ba6 {[%clk 01:34:16]} 10. b3 {[%clk
01:34:49]} {[%emt 00:00:05]} Bg7 {[%clk 01:34:41]} {[%emt 00:00:05]} 11. Bb2
{[%clk 01:35:15]} {[%emt 00:00:05]} O-O {[%clk 01:35:02]} {[%emt 00:00:08]} 12.
Bg2 {[%clk 01:35:43]} {[%emt 00:00:03]} Rae8 {[%clk 01:32:24]} {[%emt
00:03:07]} 13. O-O {[%clk 01:36:05]} {[%emt 00:00:08]} f6 {[%clk 01:30:00]}
{[%emt 00:02:55]} 14. Re1 {[%clk 01:20:00]} {[%emt 00:16:33]} fxe5 {[%clk
01:27:17]} {[%emt 00:03:12]} 15. Nd2 {[%clk 01:19:18]} {[%emt 00:01:13]} Nb6
{[%clk 01:14:25]} {[%emt 00:13:22]} 16. a4 {[%clk 01:14:51]} {[%emt 00:04:57]}
Nd5 {[%clk 00:50:33]} {[%emt 00:24:20]} 17. Qe4 {[%clk 00:59:09]} {[%emt
00:16:14]} Nf6 {[%clk 00:25:03]} {[%emt 00:25:59]} 18. Qxe5 {[%clk 00:58:27]}
{[%emt 00:01:12]} Qf7 {[%clk 00:25:05]} {[%emt 00:00:27]} 19. Qf4 {[%clk
00:57:11]} {[%emt 00:01:47]} Ng4 {[%clk 00:19:08]} {[%emt 00:06:26]} 20. Qxf7+
{[%clk 00:57:25]} {[%emt 00:00:17]} Kxf7 {[%clk 00:19:25]} {[%emt 00:00:12]} 21.
Bxg7 {[%clk 00:52:40]} {[%emt 00:05:16]} Kxg7 {[%clk 00:19:50]} {[%emt
00:00:05]} 22. Ne4 {[%clk 00:50:01]} {[%emt 00:03:09]} Nf6 {[%clk 00:17:04]}
{[%emt 00:03:16]} 23. Nc5 {[%clk 00:43:48]} {[%emt 00:06:43]} Bc8 {[%clk
00:17:16]} {[%emt 00:00:18]} 24. Bh3 {[%clk 00:42:21]} {[%emt 00:01:57]} Kf7
{[%clk 00:14:42]} {[%emt 00:03:04]} 25. Rad1 {[%clk 00:41:27]} {[%emt
00:01:24]} d6 {[%clk 00:14:03]} {[%emt 00:01:09]} 26. Bxc8 {[%clk 00:39:46]}
{[%emt 00:02:11]} Rxc8 {[%clk 00:14:29]} {[%emt 00:00:03]} 27. Ne6 {[%clk
00:31:45]} {[%emt 00:08:31]} Rfe8 {[%clk 00:14:57]} {[%emt 00:00:02]} 28. Ng5+
{[%clk 00:31:41]} {[%emt 00:00:34]} Kg7 {[%clk 00:15:16]} {[%emt 00:00:12]} 29.
Kf1 {[%clk 00:31:23]} {[%emt 00:00:47]} h6 {[%emt 00:01:40]} 30. Ne6+ {[%clk
00:31:29]} Kf7 {[%emt 00:00:58]} 31. Nd4 {[%clk 00:31:18]} c5 {[%clk 00:14:34]}
{[%emt 00:00:39]} 32. Rxe8 {[%clk 00:29:51]} {[%emt 00:01:57]} Kxe8 {[%clk
00:11:33]} {[%emt 00:03:31]} 33. Nc6 {[%clk 00:27:52]} {[%emt 00:02:30]} a6
{[%clk 00:11:09]} {[%emt 00:00:54]} 34. f3 {[%clk 00:11:50]} {[%emt 00:16:31]}
g5 {[%clk 00:09:41]} {[%emt 00:01:58]} 35. Rd3 {[%clk 00:04:58]} {[%emt
00:07:22]} Kd7 {[%clk 00:08:49]} {[%emt 00:01:22]} 36. Ne5+ {[%clk 00:05:03]}
{[%emt 00:00:26]} Ke6 {[%clk 00:08:59]} {[%emt 00:00:20]} 37. Nc6 {[%clk
00:04:43]} {[%emt 00:00:49]} Kd7 {[%clk 00:09:23]} {[%emt 00:00:06]} 1/2-1/2